[Event "*** Titled Tuesday Blitz"]
[Site "Chess.com"]
[Date "2019.01.01"]
[Round "2"]
[White "akhairat"]
[Black "yobdc"]
[Result "1-0"]
[WhiteElo "2256"]
[BlackElo "2123"]
[TimeControl "180+2"]
[EndTime "13:23:50 PST"]
[Termination "akhairat won by checkmate"]

1. Nf3 {[%clk 0:03:01.7]} 1... Nf6 {[%clk 0:03:00.2]} 2. b3 {[%clk 0:03:02.1]}
2... g6 {[%clk 0:02:58.5]} 3. Bb2 {[%clk 0:03:03.6]} 3... Bg7 {[%clk 0:02:59.9]}
4. c4 {[%clk 0:03:04.7]} 4... d6 {[%clk 0:03:00.9]} 5. d4 {[%clk 0:03:05.3]}
5... O-O {[%clk 0:02:53.7]} 6. g3 {[%clk 0:03:05.6]} 6... e5 {[%clk 0:02:52.3]}
7. dxe5 {[%clk 0:03:06]} 7... Ng4 {[%clk 0:02:53.5]} 8. Nc3 {[%clk 0:03:06.7]}
8... Nxe5 {[%clk 0:02:53.9]} 9. Bg2 {[%clk 0:03:08.3]} 9... Nbc6 {[%clk
0:02:54.2]} 10. O-O {[%clk 0:03:09.8]} 10... Bg4 {[%clk 0:02:53.5]} 11. h3
{[%clk 0:03:09.5]} 11... Bd7 {[%clk 0:02:52.4]} 12. Nxe5 {[%clk 0:02:51.4]}
12... Nxe5 {[%clk 0:02:44.1]} 13. Re1 {[%clk 0:02:43.3]} 13... Qc8 {[%clk
0:02:42.9]} 14. Kh2 {[%clk 0:02:43.9]} 14... h5 {[%clk 0:02:40.2]} 15. f4 {[%clk
0:02:40.4]} 15... Nc6 {[%clk 0:02:37.7]} 16. Na4 {[%clk 0:02:37.8]} 16... Re8
{[%clk 0:02:26.3]} 17. e4 {[%clk 0:02:35.6]} 17... Qd8 {[%clk 0:02:21.9]} 18.
Bxg7 {[%clk 0:02:36.3]} 18... Kxg7 {[%clk 0:02:23.3]} 19. Qd2 {[%clk 0:02:31]}
19... Be6 {[%clk 0:01:53.6]} 20. Rad1 {[%clk 0:02:30.6]} 20... Qf6 {[%clk
0:01:52.6]} 21. Nc3 {[%clk 0:02:29.3]} 21... Rad8 {[%clk 0:01:49.4]} 22. Nd5
{[%clk 0:01:44]} 22... Bxd5 {[%clk 0:01:49.9]} 23. cxd5 {[%clk 0:01:45.9]} 23...
Nb8 {[%clk 0:01:45.6]} 24. Qe3 {[%clk 0:01:41.9]} 24... c5 {[%clk 0:01:27.2]}
25. e5 {[%clk 0:01:25.3]} 25... Qe7 {[%clk 0:01:25.5]} 26. Qc3 {[%clk
0:01:25.2]} 26... Nd7 {[%clk 0:01:01.4]} 27. Re3 {[%clk 0:00:38.1]} 27... dxe5
{[%clk 0:00:49.7]} 28. d6 {[%clk 0:00:39]} 28... Qf6 {[%clk 0:00:45]} 29. Bxb7
{[%clk 0:00:38.5]} 29... exf4 {[%clk 0:00:44.5]} 30. Qxf6+ {[%clk 0:00:28.6]}
30... Nxf6 {[%clk 0:00:42.5]} 31. Rxe8 {[%clk 0:00:19.9]} 31... fxg3+ {[%clk
0:00:43.1]} 32. Kxg3 {[%clk 0:00:20]} 32... Nxe8 {[%clk 0:00:43.3]} 33. d7
{[%clk 0:00:20.1]} 33... Nf6 {[%clk 0:00:44.1]} 34. Bc6 {[%clk 0:00:21.3]} 34...
g5 {[%clk 0:00:44.2]} 35. Rd6 {[%clk 0:00:20.9]} 35... a5 {[%clk 0:00:31.2]} 36.
Kf3 {[%clk 0:00:17.3]} 36... g4+ {[%clk 0:00:32.2]} 37. hxg4 {[%clk 0:00:16.5]}
37... Nxg4 {[%clk 0:00:33.4]} 38. Kf4 {[%clk 0:00:12.3]} 38... f6 {[%clk
0:00:32.8]} 39. Kf5 {[%clk 0:00:10.2]} 39... Ne5 {[%clk 0:00:31.7]} 40. Ke6
{[%clk 0:00:07.9]} 40... Ng6 {[%clk 0:00:23]} 41. Bf3 {[%clk 0:00:04.3]} 41...
h4 {[%clk 0:00:23.4]} 42. Be4 {[%clk 0:00:02.8]} 42... Ne5 {[%clk 0:00:17]} 43.
Ke7 {[%clk 0:00:02.9]} 43... Rxd7+ {[%clk 0:00:15.3]} 44. Rxd7 {[%clk
0:00:04.5]} 44... Nxd7 {[%clk 0:00:16.3]} 45. Kxd7 {[%clk 0:00:06.4]} 45... Kh6
{[%clk 0:00:16.1]} 46. Ke6 {[%clk 0:00:06.6]} 46... Kg5 {[%clk 0:00:17.1]} 47.
Bf5 {[%clk 0:00:07.1]} 47... a4 {[%clk 0:00:12.7]} 48. Bh3 {[%clk 0:00:03.2]}
48... a3 {[%clk 0:00:11.4]} 49. Bf5 {[%clk 0:00:04.5]} 49... Kf4 {[%clk
0:00:10.5]} 50. Kxf6 {[%clk 0:00:05.8]} 50... Ke3 {[%clk 0:00:12.1]} 51. Ke5
{[%clk 0:00:06.3]} 51... Kd2 {[%clk 0:00:11.7]} 52. Kd5 {[%clk 0:00:07.7]} 52...
Kc3 {[%clk 0:00:13.2]} 53. Kxc5 {[%clk 0:00:08.9]} 53... Kb2 {[%clk 0:00:14.9]}
54. b4 {[%clk 0:00:09.1]} 54... Kxa2 {[%clk 0:00:15.5]} 55. b5 {[%clk 0:00:11]}
55... Kb2 {[%clk 0:00:16.8]} 56. b6 {[%clk 0:00:12.4]} 56... a2 {[%clk
0:00:18.4]} 57. b7 {[%clk 0:00:14]} 57... a1=Q {[%clk 0:00:19.7]} 58. b8=Q+
{[%clk 0:00:15.9]} 58... Kc1 {[%clk 0:00:16.6]} 59. Qf4+ {[%clk 0:00:16.2]}
59... Kb2 {[%clk 0:00:16]} 60. Qd4+ {[%clk 0:00:16.7]} 60... Ka2 {[%clk
0:00:14.7]} 61. Be6+ {[%clk 0:00:16.9]} 61... Kb1 {[%clk 0:00:15.9]} 62. Qg1+
{[%clk 0:00:17.1]} 62... Kb2 {[%clk 0:00:16.5]} 63. Qf2+ {[%clk 0:00:18.2]}
63... Kb1 {[%clk 0:00:17.7]} 64. Qe1+ {[%clk 0:00:19.2]} 64... Kb2 {[%clk
0:00:18.8]} 65. Qd2+ {[%clk 0:00:20.4]} 65... Kb1 {[%clk 0:00:14.8]} 66. Bf5#
{[%clk 0:00:21.4]} 1-0

[Event "*** Titled Tuesday Blitz"]
[Site "Chess.com"]
[Date "2019.01.01"]
[Round "2"]
[White "GulamaliRises"]
[Black "Rainmond"]
[Result "1/2-1/2"]
[WhiteElo "2647"]
[BlackElo "2789"]
[TimeControl "180+2"]
[EndTime "13:24:03 PST"]
[Termination "Game drawn by repetition"]

1. e4 {[%clk 0:03:01.9]} 1... c5 {[%clk 0:02:56]} 2. d4 {[%clk 0:03:01.7]} 2...
cxd4 {[%clk 0:02:56]} 3. c3 {[%clk 0:03:03.2]} 3... Nf6 {[%clk 0:02:56.5]} 4. e5
{[%clk 0:03:04.5]} 4... Nd5 {[%clk 0:02:57.5]} 5. Qxd4 {[%clk 0:03:05.7]} 5...
e6 {[%clk 0:02:57.1]} 6. Nf3 {[%clk 0:03:06.9]} 6... Nc6 {[%clk 0:02:57.9]} 7.
Qe4 {[%clk 0:03:08.1]} 7... f5 {[%clk 0:02:58.6]} 8. Qe2 {[%clk 0:03:06.7]} 8...
b5 {[%clk 0:02:53.8]} 9. g3 {[%clk 0:02:57.3]} 9... Rb8 {[%clk 0:02:52]} 10. Bg2
{[%clk 0:02:53.9]} 10... Be7 {[%clk 0:02:49]} 11. O-O {[%clk 0:02:52.7]} 11...
O-O {[%clk 0:02:49.8]} 12. Nbd2 {[%clk 0:02:43.7]} 12... a5 {[%clk 0:02:47.8]}
13. Nb3 {[%clk 0:02:37.6]} 13... b4 {[%clk 0:02:43.5]} 14. c4 {[%clk 0:02:37.9]}
14... Ba6 {[%clk 0:02:44.2]} 15. Nbd2 {[%clk 0:02:30.2]} 15... g5 {[%clk
0:02:28.3]} 16. Qd3 {[%clk 0:01:58.3]} 16... g4 {[%clk 0:02:26.3]} 17. Nd4
{[%clk 0:01:51.7]} 17... Nxe5 {[%clk 0:02:14.6]} 18. Qc2 {[%clk 0:01:52.7]}
18... Nf6 {[%clk 0:02:11.6]} 19. Re1 {[%clk 0:01:48.8]} 19... Qc7 {[%clk
0:02:12.1]} 20. b3 {[%clk 0:01:48.1]} 20... Ng6 {[%clk 0:02:07.5]} 21. Bb2
{[%clk 0:01:44.9]} 21... Bc5 {[%clk 0:02:07.5]} 22. Rad1 {[%clk 0:01:45.7]}
22... Qb6 {[%clk 0:02:07.3]} 23. Nf1 {[%clk 0:01:45.9]} 23... Rbe8 {[%clk
0:02:01.8]} 24. Qd2 {[%clk 0:01:45.7]} 24... Bb7 {[%clk 0:01:56.6]} 25. Bxb7
{[%clk 0:01:34.5]} 25... Qxb7 {[%clk 0:01:56.8]} 26. Nb5 {[%clk 0:01:23.8]}
26... Re7 {[%clk 0:01:56.3]} 27. Nd6 {[%clk 0:01:15.3]} 27... Qc6 {[%clk
0:01:54.8]} 28. Bxf6 {[%clk 0:01:16.4]} 28... Rxf6 {[%clk 0:01:53.9]} 29. Qd3
{[%clk 0:00:58.5]} 29... Qb6 {[%clk 0:01:34.9]} 30. Rd2 {[%clk 0:00:55]} 30...
Qc6 {[%clk 0:01:34.4]} 31. Nb5 {[%clk 0:00:36.3]} 31... Nh8 {[%clk 0:01:24.9]}
32. Ne3 {[%clk 0:00:34.7]} 32... Nf7 {[%clk 0:01:23]} 33. Nd4 {[%clk 0:00:24.5]}
33... Qb7 {[%clk 0:01:17]} 34. Ng2 {[%clk 0:00:14]} 34... Ng5 {[%clk 0:01:14.3]}
35. Nh4 {[%clk 0:00:15.5]} 35... Ne4 {[%clk 0:01:12.8]} 36. Rde2 {[%clk
0:00:16]} 36... Ref7 {[%clk 0:01:05.4]} 37. h3 {[%clk 0:00:14.3]} 37... h5
{[%clk 0:00:55.9]} 38. Kh2 {[%clk 0:00:15.5]} 38... Qb6 {[%clk 0:00:52.7]} 39.
Rd1 {[%clk 0:00:15.6]} 39... Nc3 {[%clk 0:00:52.5]} 40. Red2 {[%clk 0:00:17.1]}
40... Nxd1 {[%clk 0:00:52.8]} 41. Rxd1 {[%clk 0:00:19]} 41... Bxd4 {[%clk
0:00:48.4]} 42. Qxd4 {[%clk 0:00:20.1]} 42... Qxd4 {[%clk 0:00:49.7]} 43. Rxd4
{[%clk 0:00:22]} 43... f4 {[%clk 0:00:50.8]} 44. hxg4 {[%clk 0:00:20]} 44...
fxg3+ {[%clk 0:00:50.6]} 45. Kxg3 {[%clk 0:00:21.9]} 45... hxg4 {[%clk
0:00:49.9]} 46. Rxg4+ {[%clk 0:00:22.5]} 46... Kh7 {[%clk 0:00:51]} 47. f4
{[%clk 0:00:23]} 47... Rg7 {[%clk 0:00:51]} 48. Nf3 {[%clk 0:00:24.5]} 48...
Rxg4+ {[%clk 0:00:51.4]} 49. Kxg4 {[%clk 0:00:26.4]} 49... Rf5 {[%clk
0:00:48.9]} 50. Ne5 {[%clk 0:00:26.1]} 50... d6 {[%clk 0:00:49.5]} 51. Nc6
{[%clk 0:00:27.1]} 51... Kg6 {[%clk 0:00:42.9]} 52. Ne7+ {[%clk 0:00:26.7]}
52... Kf6 {[%clk 0:00:39.8]} 53. Nxf5 {[%clk 0:00:28.2]} 53... exf5+ {[%clk
0:00:41]} 54. Kf3 {[%clk 0:00:29.5]} 54... Ke6 {[%clk 0:00:33.8]} 55. Ke3 {[%clk
0:00:30.4]} 55... Kd7 {[%clk 0:00:34.8]} 56. Kd3 {[%clk 0:00:22.2]} 56... Kc7
{[%clk 0:00:34]} 57. Ke3 {[%clk 0:00:20.5]} 57... Kb6 {[%clk 0:00:33.1]} 58. Kd3
{[%clk 0:00:15.3]} 58... Kc5 {[%clk 0:00:26]} 59. Ke3 {[%clk 0:00:16.6]} 59...
d5 {[%clk 0:00:25.6]} 60. cxd5 {[%clk 0:00:18.5]} 60... Kxd5 {[%clk 0:00:26.7]}
61. Kd3 {[%clk 0:00:20.1]} 61... Kc5 {[%clk 0:00:25.9]} 62. Ke3 {[%clk
0:00:21.5]} 62... a4 {[%clk 0:00:18.2]} 63. Kd3 {[%clk 0:00:22.6]} 63... axb3
{[%clk 0:00:16.1]} 64. axb3 {[%clk 0:00:23.2]} 64... Kd5 {[%clk 0:00:18]} 65.
Ke3 {[%clk 0:00:23.4]} 65... Kc5 {[%clk 0:00:18.9]} 66. Kd3 {[%clk 0:00:24.7]}
66... Kd5 {[%clk 0:00:20.2]} 67. Ke3 {[%clk 0:00:26.1]} 67... Kc5 {[%clk
0:00:20.6]} 68. Kd3 {[%clk 0:00:27.5]} 68... Kd5 {[%clk 0:00:21.9]} 69. Ke3
{[%clk 0:00:28.6]} 69... Kc5 {[%clk 0:00:23.2]} 70. Kd3 {[%clk 0:00:30.1]} 70...
Kd5 {[%clk 0:00:24.4]} 71. Ke3 {[%clk 0:00:31.7]} 71... Kc5 {[%clk 0:00:25.6]}
72. Kd3 {[%clk 0:00:33.2]} 1/2-1/2

[Event "*** Titled Tuesday Blitz"]
[Site "Chess.com"]
[Date "2019.01.01"]
[Round "2"]
[White "joppie2"]
[Black "IamSchrodingersCat"]
[Result "0-1"]
[WhiteElo "2737"]
[BlackElo "2467"]
[TimeControl "180+2"]
[EndTime "13:24:08 PST"]
[Termination "IamSchrodingersCat won by resignation"]

1. c4 {[%clk 0:03:01.9]} 1... g6 {[%clk 0:03:00.5]} 2. d4 {[%clk 0:03:00]} 2...
Bg7 {[%clk 0:03:02.4]} 3. Nc3 {[%clk 0:03:01.4]} 3... d6 {[%clk 0:03:03.5]} 4.
e4 {[%clk 0:03:02.8]} 4... Nd7 {[%clk 0:03:04.9]} 5. Be2 {[%clk 0:02:57.1]} 5...
e5 {[%clk 0:03:04.9]} 6. d5 {[%clk 0:02:58.3]} 6... Ngf6 {[%clk 0:03:03.2]} 7.
Be3 {[%clk 0:02:57.6]} 7... O-O {[%clk 0:03:02]} 8. g4 {[%clk 0:02:57.4]} 8...
Nc5 {[%clk 0:03:00.3]} 9. f3 {[%clk 0:02:58.6]} 9... a5 {[%clk 0:02:55.5]} 10.
h4 {[%clk 0:02:59.3]} 10... h5 {[%clk 0:02:54.4]} 11. g5 {[%clk 0:02:57.5]}
11... Nfd7 {[%clk 0:02:52.3]} 12. Nh3 {[%clk 0:02:58.7]} 12... Qe7 {[%clk
0:02:46.8]} 13. Qd2 {[%clk 0:02:56.3]} 13... Rd8 {[%clk 0:02:44.3]} 14. O-O-O
{[%clk 0:02:56.7]} 14... a4 {[%clk 0:02:37]} 15. Kb1 {[%clk 0:02:57.6]} 15...
Nb6 {[%clk 0:02:34.4]} 16. Nf2 {[%clk 0:02:53.2]} 16... Bd7 {[%clk 0:02:17.6]}
17. Nb5 {[%clk 0:02:52.5]} 17... Bxb5 {[%clk 0:02:14.9]} 18. cxb5 {[%clk
0:02:54.4]} 18... Nbd7 {[%clk 0:02:16.3]} 19. Rc1 {[%clk 0:02:48]} 19... Kh7
{[%clk 0:02:12.6]} 20. Rc2 {[%clk 0:02:37.6]} 20... b6 {[%clk 0:02:06.5]} 21.
Rhc1 {[%clk 0:02:35.3]} 21... Rf8 {[%clk 0:02:06.9]} 22. Rg1 {[%clk 0:02:25.3]}
22... Ra7 {[%clk 0:02:06.2]} 23. Bf1 {[%clk 0:02:26]} 23... f5 {[%clk
0:01:55.6]} 24. gxf6 {[%clk 0:02:25.1]} 24... Bxf6 {[%clk 0:01:56.1]} 25. Nh3
{[%clk 0:02:21]} 25... Bxh4 {[%clk 0:01:54.3]} 26. Qd1 {[%clk 0:02:12]} 26...
Raa8 {[%clk 0:01:48.1]} 27. Rh2 {[%clk 0:02:12.3]} 27... Rf7 {[%clk 0:01:39.6]}
28. Bg5 {[%clk 0:02:11]} 28... Bxg5 {[%clk 0:01:34.8]} 29. Nxg5+ {[%clk
0:02:12.9]} 29... Kg7 {[%clk 0:01:32.5]} 30. Nxf7 {[%clk 0:02:11.8]} 30... Kxf7
{[%clk 0:01:34.4]} 31. Bh3 {[%clk 0:02:09.6]} 31... Qf6 {[%clk 0:01:24.2]} 32.
Qd2 {[%clk 0:02:03.6]} 32... Ke7 {[%clk 0:01:16.5]} 33. Qh6 {[%clk 0:01:51.1]}
33... Rg8 {[%clk 0:01:10.9]} 34. Rhg2 {[%clk 0:01:42.8]} 34... Nf8 {[%clk
0:01:07]} 35. Bf5 {[%clk 0:01:41.5]} 35... Rh8 {[%clk 0:01:02.2]} 36. Qc1 {[%clk
0:00:49]} 36... gxf5 {[%clk 0:01:02.7]} 37. Rg7+ {[%clk 0:00:50.9]} 37... Kd8
{[%clk 0:01:00.2]} 38. b4 {[%clk 0:00:52.1]} 38... axb3 {[%clk 0:00:57.1]} 39.
Qa3 {[%clk 0:00:53.3]} 39... bxa2+ {[%clk 0:00:36.5]} 40. Qxa2 {[%clk
0:00:55.2]} 40... Ke8 {[%clk 0:00:23.1]} 41. Rxc7 {[%clk 0:00:31.1]} 41... Nfd7
{[%clk 0:00:16.3]} 42. Qa7 {[%clk 0:00:14.4]} 42... fxe4 {[%clk 0:00:13]} 43.
fxe4 {[%clk 0:00:16.3]} 43... Rf8 {[%clk 0:00:10.9]} 44. Qa3 {[%clk 0:00:14.4]}
44... Qf4 {[%clk 0:00:09.7]} 45. Re1 {[%clk 0:00:09.6]} 45... Qf3 {[%clk
0:00:09.6]} 46. Qxf3 {[%clk 0:00:04.5]} 46... Rxf3 {[%clk 0:00:11.5]} 47. Rh1
{[%clk 0:00:05.6]} 47... Nxe4 {[%clk 0:00:08.2]} 48. Rxh5 {[%clk 0:00:06.8]}
48... Nec5 {[%clk 0:00:09.6]} 49. Rh7 {[%clk 0:00:07.2]} 49... Rf7 {[%clk
0:00:09.6]} 50. Rh8+ {[%clk 0:00:07.4]} 50... Ke7 {[%clk 0:00:11.1]} 51. Rh6
{[%clk 0:00:08.7]} 51... e4 {[%clk 0:00:11.5]} 52. Kc2 {[%clk 0:00:08.9]} 52...
Rf2+ {[%clk 0:00:10]} 53. Kd1 {[%clk 0:00:09.7]} 53... Rb2 {[%clk 0:00:09]} 54.
Rh7+ {[%clk 0:00:10]} 54... Kf6 {[%clk 0:00:07.9]} 55. Rc8 {[%clk 0:00:06.7]}
55... Ke5 {[%clk 0:00:08.5]} 56. Rd8 {[%clk 0:00:03.9]} 56... Kxd5 {[%clk
0:00:09.1]} 57. Rh6 {[%clk 0:00:04.6]} 57... Rxb5 {[%clk 0:00:08.9]} 58. Re8
{[%clk 0:00:05.6]} 58... Rb4 {[%clk 0:00:08.2]} 59. Kc2 {[%clk 0:00:06.8]} 59...
Rd4 {[%clk 0:00:08.9]} 60. Kc3 {[%clk 0:00:07.7]} 60... Rd3+ {[%clk 0:00:09.5]}
61. Kc2 {[%clk 0:00:09.2]} 61... Kc4 {[%clk 0:00:11]} 62. Re7 {[%clk 0:00:05.7]}
62... d5 {[%clk 0:00:11.6]} 63. Rh1 {[%clk 0:00:06]} 63... b5 {[%clk 0:00:12.4]}
64. Re8 {[%clk 0:00:05.5]} 64... b4 {[%clk 0:00:13.7]} 65. Ra8 {[%clk 0:00:07]}
65... b3+ {[%clk 0:00:14.9]} 66. Kb1 {[%clk 0:00:08.9]} 66... Nb6 {[%clk
0:00:15.6]} 67. Rb8 {[%clk 0:00:09.1]} 67... Nba4 {[%clk 0:00:16.6]} 68. Rc1+
{[%clk 0:00:10.1]} 68... Rc3 {[%clk 0:00:16.5]} 69. Rh1 {[%clk 0:00:09.9]} 69...
Rc2 {[%clk 0:00:17.3]} 70. Ka1 {[%clk 0:00:08.5]} 70... Ra2+ {[%clk 0:00:17.5]}
0-1

[Event "*** Titled Tuesday Blitz"]
[Site "Chess.com"]
[Date "2019.01.01"]
[Round "2"]
[White "Jospem"]
[Black "MehdiHosseinipour"]
[Result "1/2-1/2"]
[WhiteElo "2784"]
[BlackElo "2558"]
[TimeControl "180+2"]
[EndTime "13:24:17 PST"]
[Termination "Game drawn by agreement"]

1. e4 {[%clk 0:03:01.9]} 1... c5 {[%clk 0:03:00.8]} 2. Nf3 {[%clk 0:03:01.4]}
2... d6 {[%clk 0:03:02]} 3. d4 {[%clk 0:03:02]} 3... cxd4 {[%clk 0:03:03.2]} 4.
Nxd4 {[%clk 0:03:03.9]} 4... Nf6 {[%clk 0:03:04.7]} 5. Nc3 {[%clk 0:03:05.3]}
5... Nc6 {[%clk 0:03:04.9]} 6. Bg5 {[%clk 0:03:02.8]} 6... e6 {[%clk 0:03:06.1]}
7. Qd2 {[%clk 0:03:03.9]} 7... a6 {[%clk 0:03:07.2]} 8. O-O-O {[%clk 0:03:04.9]}
8... Bd7 {[%clk 0:03:08.6]} 9. f3 {[%clk 0:03:05.2]} 9... b5 {[%clk 0:03:09.1]}
10. Nxc6 {[%clk 0:03:05.6]} 10... Bxc6 {[%clk 0:03:10.3]} 11. Kb1 {[%clk
0:03:07.5]} 11... Qb6 {[%clk 0:03:09.1]} 12. Be3 {[%clk 0:03:07.2]} 12... Qc7
{[%clk 0:03:10]} 13. g4 {[%clk 0:03:06.4]} 13... Be7 {[%clk 0:03:11.2]} 14. g5
{[%clk 0:03:01.4]} 14... Nd7 {[%clk 0:03:12.5]} 15. h4 {[%clk 0:03:01.7]} 15...
b4 {[%clk 0:03:00.9]} 16. Ne2 {[%clk 0:03:01.1]} 16... d5 {[%clk 0:03:02.4]} 17.
Bf4 {[%clk 0:02:25.2]} 17... Qb7 {[%clk 0:03:00.5]} 18. e5 {[%clk 0:02:25.2]}
18... Bb5 {[%clk 0:02:52.7]} 19. Nd4 {[%clk 0:02:24]} 19... Bxf1 {[%clk
0:02:52.8]} 20. Rdxf1 {[%clk 0:02:25.9]} 20... Nb6 {[%clk 0:02:44.6]} 21. b3
{[%clk 0:02:25.5]} 21... O-O-O {[%clk 0:02:31.8]} 22. h5 {[%clk 0:02:22.7]}
22... g6 {[%clk 0:02:26.9]} 23. Be3 {[%clk 0:02:22.1]} 23... Nd7 {[%clk
0:02:24]} 24. Bf4 {[%clk 0:02:16.1]} 24... Kb8 {[%clk 0:02:19.4]} 25. Bg3 {[%clk
0:02:09.3]} 25... Rc8 {[%clk 0:02:18.3]} 26. Rd1 {[%clk 0:02:04.3]} 26... Qb6
{[%clk 0:02:09.6]} 27. Qf4 {[%clk 0:02:01.5]} 27... Rhf8 {[%clk 0:02:03.9]} 28.
hxg6 {[%clk 0:02:02.5]} 28... hxg6 {[%clk 0:01:50.2]} 29. Rh7 {[%clk 0:02:02.4]}
29... Bc5 {[%clk 0:01:32.1]} 30. Qd2 {[%clk 0:01:26.8]} 30... Qc7 {[%clk
0:01:20.3]} 31. Qe2 {[%clk 0:01:21.1]} 31... Qb6 {[%clk 0:01:17.4]} 32. Bf2
{[%clk 0:01:20.5]} 32... Rc7 {[%clk 0:01:07.1]} 33. Rh4 {[%clk 0:01:19.2]} 33...
Kb7 {[%clk 0:01:07.7]} 34. Rf4 {[%clk 0:01:14.6]} 34... Nb8 {[%clk 0:01:04.8]}
35. Rd2 {[%clk 0:01:05.7]} 35... Rfc8 {[%clk 0:01:04.3]} 36. Rd3 {[%clk
0:00:52.5]} 36... a5 {[%clk 0:00:43.7]} 37. Rd2 {[%clk 0:00:51.7]} 37... Rd7
{[%clk 0:00:27.9]} 38. Rg4 {[%clk 0:00:43]} 38... Qa6 {[%clk 0:00:29]} 39. Qd1
{[%clk 0:00:41]} 39... Qb6 {[%clk 0:00:29.7]} 40. Rg2 {[%clk 0:00:39.1]} 40...
Rdc7 {[%clk 0:00:31.1]} 41. Bg1 {[%clk 0:00:39.9]} 41... Nd7 {[%clk 0:00:32.1]}
42. f4 {[%clk 0:00:40.9]} 42... Nb8 {[%clk 0:00:33.3]} 43. Rge2 {[%clk
0:00:41.4]} 43... Nc6 {[%clk 0:00:33.9]} 44. Nxc6 {[%clk 0:00:39.5]} 44... Rxc6
{[%clk 0:00:35.8]} 45. Bxc5 {[%clk 0:00:39.9]} 45... Qxc5 {[%clk 0:00:37.5]} 46.
Qh1 {[%clk 0:00:36.6]} 46... R8c7 {[%clk 0:00:36.6]} 47. Qh2 {[%clk 0:00:36.5]}
47... Qb5 {[%clk 0:00:36.8]} 48. Qf2 {[%clk 0:00:33.1]} 48... Rc3 {[%clk
0:00:37.5]} 49. Re1 {[%clk 0:00:33.7]} 49... Qc5 {[%clk 0:00:37.9]} 50. Qe2
{[%clk 0:00:31.4]} 50... Kb6 {[%clk 0:00:36.1]} 51. Rh1 {[%clk 0:00:31.6]} 51...
Qb5 {[%clk 0:00:36.9]} 52. Qf2+ {[%clk 0:00:32.4]} 52... Qc5 {[%clk 0:00:38.4]}
53. Qe2 {[%clk 0:00:34.1]} 53... Qb5 {[%clk 0:00:39.7]} 54. Qf2+ {[%clk
0:00:35.6]} 54... Qc5 {[%clk 0:00:41.3]} 55. Qe2 {[%clk 0:00:37]} 55... Re3
{[%clk 0:00:41.8]} 56. Qf2 {[%clk 0:00:35.8]} 56... Re4 {[%clk 0:00:43.2]} 57.
Qh2 {[%clk 0:00:32.3]} 57... Qe3 {[%clk 0:00:41.5]} 58. Rf1 {[%clk 0:00:30]}
58... Ra7 {[%clk 0:00:35.7]} 59. Rd3 {[%clk 0:00:29]} 59... Qc5 {[%clk
0:00:34.8]} 60. Qh8 {[%clk 0:00:25.3]} 60... Qc7 {[%clk 0:00:32.2]} 61. Rc1
{[%clk 0:00:23.2]} 61... Kb7 {[%clk 0:00:31.4]} 62. Qe8 {[%clk 0:00:20.8]} 62...
Ra8 {[%clk 0:00:25.3]} 63. Qb5+ {[%clk 0:00:21.7]} 63... Qb6 {[%clk 0:00:26.9]}
64. Qd7+ {[%clk 0:00:23.3]} 64... Qc7 {[%clk 0:00:28.4]} 65. Qb5+ {[%clk
0:00:24.4]} 65... Qb6 {[%clk 0:00:29.9]} 66. Qd7+ {[%clk 0:00:25]} 66... Qc7
{[%clk 0:00:31.4]} 67. Qxc7+ {[%clk 0:00:26.5]} 67... Kxc7 {[%clk 0:00:32.9]}
68. c3 {[%clk 0:00:28.2]} 68... Kb7 {[%clk 0:00:29.2]} 69. cxb4 {[%clk
0:00:29.5]} 69... axb4 {[%clk 0:00:30.5]} 70. Rd2 {[%clk 0:00:31.1]} 70... Rc8
{[%clk 0:00:30.9]} 71. Rf1 {[%clk 0:00:30.7]} 71... Rc3 {[%clk 0:00:31.4]} 72.
Rdf2 {[%clk 0:00:32.2]} 72... Rg3 {[%clk 0:00:27.6]} 73. Kb2 {[%clk 0:00:33.8]}
73... Rge3 {[%clk 0:00:27.4]} 74. Rc2 {[%clk 0:00:32.2]} 74... Re2 {[%clk
0:00:28.4]} 75. Rf2 {[%clk 0:00:33.2]} 75... Rxc2+ {[%clk 0:00:27.8]} 76. Kxc2
{[%clk 0:00:35.1]} 76... Kc6 {[%clk 0:00:29.1]} 77. Kd3 {[%clk 0:00:36.3]} 77...
Kc5 {[%clk 0:00:30.5]} 78. Rc2+ {[%clk 0:00:36.9]} 78... Kb6 {[%clk 0:00:31.8]}
79. Rf2 {[%clk 0:00:38.8]} 79... Kc5 {[%clk 0:00:31.1]} 80. Rc2+ {[%clk
0:00:39.5]} 80... Kb6 {[%clk 0:00:32.6]} 81. Rf2 {[%clk 0:00:41.4]} 1/2-1/2